Cogmind - Beta 9.4 @@@ ROGUE MODE // 2020.01.28 @ 06:21:44 Player: alice_fexa Result: Self-destructed Performance ------------- Evolutions (0) 0 Regions Visited (4) 800 Robots Destroyed (35) 175 Value Destroyed (509) 509 Prototype IDs (24) 480 Alien Tech Used (0) 0 Bonus (166) 166 TOTAL SCORE: 2130 Bonus ------- Aligned with FarCom 300 Friendly Fire -134 Cogmind --------- Core Integrity 64/250 Matter 300/300 Energy 125/125 System Corruption 5% Temperature Cool (0) Movement Rolling (120) Ox2 Location -9/Mines Parts ------- > --- POWER (1) -------- Light Ion Engine > --- PROPULSION (2) --- Light Treads Compact Wheel > --- UTILITY (2) ------ High-capacity Storage Unit > --- WEAPON (2) ------- EM Pulse Gun Bore Cannon > --- INVENTORY (12) --- Light Ion Engine Compact Wheel High-capacity Storage Unit Light Armor Plating Assault Rifle Light Assault Rifle Mini Grenade Launcher Field Lobotomy Kit Peak State ------------ > --- POWER ------------ Light Ion Engine > --- PROPULSION ------- Light Treads Compact Wheel > --- UTILITY ---------- High-capacity Storage Unit > --- WEAPON ----------- EM Pulse Gun Bore Cannon > --- INVENTORY -------- Light Ion Engine Compact Wheel High-capacity Storage Unit Light Armor Plating Assault Rifle Light Assault Rifle Field Lobotomy Kit [Rating: 11] Favorites ----------- Power Light Ion Engine Engine Light Ion Engine Propulsion Light Treads Treads Light Treads Wheel Wheel Utility Heat Sink Device Heat Sink Storage High-capacity Storage Unit Processor Signal Interpreter Weapon Assault Rifle Energy Gun EM Pulse Gun Ballistic Gun Assault Rifle Ballistic Cannon Bore Cannon Build | -11 -10 -10 -10 -9 ------- Run | Scr Mat Min Exi Min Slots Evolved . | . . . . . Power . | . . . . . Propulsion . | . . . . . Utility . | . . . . . Weapon . | . . . . . Parts Attached 25 | 6 12 . 1 6 Power 5 | 1 3 . . 1 Engine 5 | 1 3 . . 1 Core . | . . . . . Reactor . | . . . . . Propulsion 7 | 2 3 . . 2 Treads 3 | 1 1 . . 1 Leg . | . . . . . Wheel 4 | 1 2 . . 1 Hover . | . . . . . Flight . | . . . . . Utility 6 | 1 4 . . 1 Device 2 | . 1 . . 1 Storage 3 | 1 2 . . . Processor 1 | . 1 . . . Hackware . | . . . . . Protection . | . . . . . Artifact . | . . . . . Weapon 7 | 2 2 . 1 2 Energy Gun 4 | 1 1 . 1 1 Energy Cannon . | . . . . . Ballistic Gun 2 | 1 1 . . . Ballistic Cannon 1 | . . . . 1 Launcher . | . . . . . Special Weapon . | . . . . . Impact Weapon . | . . . . . Slashing Weapon . | . . . . . Piercing Weapon . | . . . . . Special Melee Weapon . | . . . . . Unidentified Prototypes . | . . . . . Parts Lost 7 | . . . . 7 Power 1 | . . . . 1 Propulsion 2 | . . . . 2 Utility 2 | . . . . 2 Weapon 2 | . . . . 2 Highest Loss Streak 7 | . . . . 7 Average Slot Usage (%) 98 | . 99 100 100 92 Engine 14 | . 14 14 14 14 Treads 13 | . 14 14 14 13 Wheel 13 | . 14 14 14 13 Device 12 | . 13 14 14 10 Storage 14 | . 14 14 14 14 Energy Gun 14 | . 14 14 14 14 Ballistic Gun 13 | . 14 14 14 9 Naked Turns . | . . . . . Heaviest Build 46 | 11 42 40 40 46 Greatest Support 20 | 20 20 10 10 16 Greatest Overweight (x) 4 | 1 4 3 3 3 Average Overweight (x) 2 | . 1 3 3 2 Largest Inventory Capacity 12 | 6 12 12 12 12 Average Capacity 9 | 5 7 12 12 12 Most Carried 12 | 4 12 12 12 12 Average Carried 8 | 2 7 12 12 10 Final Capacity 12 | 6 12 12 12 12 Final Carried 12 | 4 12 12 12 8 Class Distribution -------------------- 100% | Mutant Dominant Class ---------------- Mutant | -10/Materials Mutant | -10/Mines Mutant | -10/Exiles Mutant | -9/Mines Resources | -11 -10 -10 -10 -9 ----------- Run | Scr Mat Min Exi Min Matter Collected 688 | 179 356 31 . 122 Remotely . | . . . . . Salvage Created 1118 | . 704 110 . 304 Parts 45 | . 37 4 . 4 Haulers Intercepted 1 | . 1 . . . Recyclers Shooed 2 | . 2 . . . Parts Field Recycled . | . . . . . Retrieved Matter . | . . . . . Parts Self-Destructed . | . . . . . Prevented . | . . . . . Kills | -11 -10 -10 -10 -9 ------- Run | Scr Mat Min Exi Min Combat Hostiles Destroyed 24 | . 13 2 . 9 Guns 24 | . 13 2 . 9 Classes Destroyed 9 | . 6 . . 3 Tunneler 1 | . . . . 1 Hauler 1 | . 1 . . . Recycler 3 | . 2 . . 1 Operator 2 | . 2 . . . Watcher 3 | . 3 . . . Swarmer 7 | . 6 . . 1 Grunt 9 | . 7 2 . . Assembled 8 | . . . . 8 Guerrilla 1 | . . . . 1 Best Kill Streak 6 | . 5 2 . 6 Combat Bots Only 5 | . 5 2 . 5 Max Kills in Single Turn 2 | . 1 2 . 2 Gunslinging 1 | . . 1 . . Exploded . | . . . . . Melee . | . . . . . Uniques/NPCs Destroyed . | . . . . . Combat | -11 -10 -10 -10 -9 -------- Run | Scr Mat Min Exi Min Damage Taken 1036 | . 429 105 . 502 Core 186 | . 53 11 . 122 Absorbed by Shields . | . . . . . Core Remaining (%) 100 | 100 . . . . Volleys Fired 94 | . 53 9 . 32 Largest 2 | . 2 2 . 2 Hottest 97 | . 70 60 . 97 Shots Fired 177 | . 105 18 . 54 Gun 175 | . 105 18 . 52 Cannon 2 | . . . . 2 Launcher . | . . . . . Special . | . . . . . Kinetic 84 | . 53 9 . 22 Thermal 20 | . 20 . . . Explosive . | . . . . . Electromagnetic 73 | . 32 9 . 32 Robot Hit Streak 26 | . 26 4 . 6 Robot Miss Streak 5 | . 3 1 . 5 Penetration Max . | . . . . . Secondary Targets 2 | . . 1 . 1 Max Gunslinging Chain 1 | . . 1 . 1 Shots Hit Robots 113 | . 71 12 . 30 Core Hits 56 | . 32 5 . 19 Critical Hits 1 | . 1 . . . Critical Kills 1 | . 1 . . . Critical Parts Destroyed . | . . . . . Melee Attacks . | . . . . . Impact . | . . . . . Slashing . | . . . . . Piercing . | . . . . . Sneak Attacks . | . . . . . Combat Hostiles . | . . . . . Follow-up Attacks . | . . . . . Damage Inflicted 1563 | . 962 171 . 430 Guns 1494 | . 922 171 . 401 Cannons 29 | . . . . 29 Explosions 40 | . 40 . . . Melee . | . . . . . Ramming . | . . . . . Kinetic 633 | . 406 61 . 166 Thermal 262 | . 262 . . . Explosive . | . . . . . Electromagnetic 668 | . 294 110 . 264 Impact . | . . . . . Slashing . | . . . . . Piercing . | . . . . . Highest Corruption 5 | . . . . 5 Average Corruption 4 | . . . . 4 Corruption Purged . | . . . . . Effects 4 | . . . . 4 Message Errors 1 | . . . . 1 Matter Fused 1 | . . . . 1 Heat Flow Errors 1 | . . . . 1 Targeting Errors 1 | . . . . 1 Overload Shots . | . . . . . Overflow Damage . | . . . . . Projectiles . | . . . . . Explosions . | . . . . . Melee . | . . . . . Knockbacks . | . . . . . Impact . | . . . . . Kinetic . | . . . . . Secondary . | . . . . . Self-Inflicted Damage . | . . . . . Shots . | . . . . . Rammed . | . . . . . Targets Rammed . | . . . . . Kicked . | . . . . . Crushed . | . . . . . Highest Temperature 75 | . 25 . . 75 Average Temperature 27 | . 11 . . 35 Received Heat Transfer 244 | . 147 57 . 40 Siege Activations . | . . . . . Robots Corrupted 3 | . 1 . . 2 Combat Hostiles . | . . . . . Parts Fried 5 | . 2 . . 3 Impact Corruptions . | . . . . . Robots Melted . | . . . . . Combat Hostiles . | . . . . . Parts Melted 1 | . 1 . . . Heat Transferred 666 | . 666 . . . Parts Sabotaged . | . . . . . Parts Stolen . | . . . . . Parts Stripped . | . . . . . Power Chain Reactions 1 | . 1 . . . Missiles Intercepted . | . . . . . Alert | -11 -10 -10 -10 -9 ------- Run | Scr Mat Min Exi Min Peak Influence 269 | . 269 66 . 40 Average Influence 56 | . 77 33 . 7 Maximum Alert Level 1 | . 1 . . . Low Security (%) 88 | 100 82 100 . 100 Level 1 11 | . 17 . . . Level 2 . | . . . . . Level 3 . | . . . . . Level 4 . | . . . . . Level 5 . | . . . . . High Security . | . . . . . Max Security . | . . . . . Squads Dispatched 4 | . 4 . . . Investigation 2 | . 2 . . . Extermination . | . . . . . Reinforcement 2 | . 2 . . . Assault . | . . . . . Garrison . | . . . . . Intercept . | . . . . . Construction Impeded . | . . . . . Haulers Reinforced . | . . . . . Stealth | -11 -10 -10 -10 -9 --------- Run | Scr Mat Min Exi Min Distress Signals 1 | . 1 . . . Communications Jammed . | . . . . . Distress Signals . | . . . . . Times Spotted 43 | . 24 3 . 16 Peak Tracking Total 8 | . 4 2 . 8 Tactical Retreats 4 | . 2 1 . 1 Traps | -11 -10 -10 -10 -9 ------- Run | Scr Mat Min Exi Min Traps Triggered 3 | . 3 . . . Indirectly . | . . . . . Trap Hack Attempts . | . . . . . Triggered . | . . . . . Disarmed . | . . . . . Reprogrammed . | . . . . . Reused . | . . . . . Traps Extracted . | . . . . . Installed . | . . . . . Triggered 1 | . 1 . . . Machines | -11 -10 -10 -10 -9 ---------- Run | Scr Mat Min Exi Min Machines Disabled . | . . . . . Max in Single Turn . | . . . . . Machines Sabotaged . | . . . . . Garrisons Compromised . | . . . . . Overloaded Fab Kills . | . . . . . Fab Network Shutdowns . | . . . . . Hacking | -11 -10 -10 -10 -9 --------- Run | Scr Mat Min Exi Min Machines Accessed 7 | . 6 . 1 . Terminals 6 | . 6 . . . Fabricators . | . . . . . Repair Stations . | . . . . . Recycling Units . | . . . . . Scanalyzers . | . . . . . Garrison Access . | . . . . . Total Hacks 20 | . 19 . 1 . Successful 13 | . 12 . 1 . Failed 7 | . 7 . . . Catastrophic 1 | . 1 . . . Database Lockouts . | . . . . . Manual 16 | . 15 . 1 . Terminals 19 | . 19 . . . Fabricators . | . . . . . Repair Stations . | . . . . . Recycling Units . | . . . . . Scanalyzers . | . . . . . Garrison Access . | . . . . . Terminal Hacks 7 | . 6 . 1 . Part Schematic 1 | . 1 . . . Prototype ID Bank 1 | . 1 . . . Unreport Threat 2 | . 2 . . . Locate Traps 1 | . 1 . . . Recall Reinforcements 1 | . 1 . . . EX-Prototype ID Bank 1 | . . . 1 . Fabricator Hacks . | . . . . . Repair Station Hacks . | . . . . . Recycling Unit Hacks . | . . . . . Scanalyzer . | . . . . . Garrison Access Hacks . | . . . . . Unauthorized Hacks 14 | . 14 . . . Terminals 6 | . 6 . . . Track 2 | . 2 . . . Botnet 4 | . 4 . . . Fabricators . | . . . . . Repair Stations . | . . . . . Recycling Units . | . . . . . Scanalyzers . | . . . . . Garrison Access . | . . . . . Data Cores Recovered . | . . . . . Used . | . . . . . Hacking Detections 6 | . 6 . . . Full Trace Events . | . . . . . Feedback Events . | . . . . . Feedback Blocked . | . . . . . Robot Schematics Acquired . | . . . . . Robots Built . | . . . . . Matter . | . . . . . Time . | . . . . . Total Robot Build Rating . | . . . . . Part Schematics Acquired 1 | . 1 . . . Parts Built . | . . . . . Matter . | . . . . . Time . | . . . . . Total Part Build Rating . | . . . . . Parts Repaired . | . . . . . Time . | . . . . . Parts Recycled . | . . . . . Recycled Matter . | . . . . . Retrieved Matter . | . . . . . Retrieved Components . | . . . . . Parts Scanalyzed . | . . . . . Part Schematics Acquired . | . . . . . Parts Damaged . | . . . . . Bothacking | -11 -10 -10 -10 -9 ------------ Run | Scr Mat Min Exi Min Used RIF Installer . | . . . . . Robots Hacked . | . . . . . Non-combat . | . . . . . Combat . | . . . . . Robot Hacks Applied . | . . . . . Relay Couplers Released . | . . . . . Robots Rewired . | . . . . . Allies Hacked . | . . . . . Hacks Repelled . | . . . . . Allies | -11 -10 -10 -10 -9 -------- Run | Scr Mat Min Exi Min Total Allies . | . . . . . Largest Group . | . . . . . Highest-Rated Group . | . . . . . Highest-Rated Ally . | . . . . . Total Orders . | . . . . . Ally Attacks . | . . . . . Total Damage . | . . . . . Kills . | . . . . . Allies Corrupted . | . . . . . Allies Melted . | . . . . . Intel | -11 -10 -10 -10 -9 ------- Run | Scr Mat Min Exi Min Robot Analysis Total . | . . . . . Derelict Logs Recovered 1 | . . . . 1 Drone Launches . | . . . . . Drone Recoveries . | . . . . . Exploration | -11 -10 -10 -10 -9 ------------- Run | Scr Mat Min Exi Min Turns Passed 1719 | 44 998 103 242 332 Spaces Moved 1192 | 37 660 70 218 207 Core 2 | 2 . . . . Treads 9 | 1 8 . . . Legs . | . . . . . Wheels 1181 | 34 652 70 218 207 Hover . | . . . . . Flight . | . . . . . Fastest Speed 50 | 50 90 110 110 110 Average Speed 102 | 85 96 110 110 112 Slowest Speed 160 | 160 160 110 110 120 Overloaded Moves . | . . . . . Propulsion Burnouts . | . . . . . Robots Hopped . | . . . . . Cave-ins Triggered . | . . . . . Exploration Rate (%) 46 | 3 95 26 61 47 Regions Visited 4 Branch Regions 3 Pre-discovered Areas . | . . . . . Known Exits Taken . | . . . . . Unknown Exits Taken 4 | 1 1 1 1 . Scrap Searched 2 | . . 1 . 1 Spaces Dug . | . . . . . Terrain Destroyed 7 | . 6 . . 1 Melee . | . . . . . Projectile 1 | . . . . 1 AOE 6 | . 6 . . . Actions | -11 -10 -10 -10 -9 --------- Run | Scr Mat Min Exi Min Total 1513 | 46 917 78 220 252 Wait 171 | . 166 . . 5 Move 1188 | 36 659 69 217 207 Hop . | . . . . . Pick Up 21 | 4 14 . 1 2 Fast Attach 8 | 6 2 . . . Attach 6 | . . . . 6 Detach . | . . . . . Swap 11 | . 10 . 1 . Drop 14 | . 13 . 1 . Fire 94 | . 53 9 . 32 Melee . | . . . . . Ram . | . . . . . Kick . | . . . . . Crush . | . . . . . Escape Stasis . | . . . . . Rewire . | . . . . . Trap . | . . . . . Miscellaneous . | . . . . . Route ------- -11/Scrapyard -10/Materials (discovered 4 exits: [*Mat x3] / [*Min]) -10/Mines (discovered 2 exits: [*Mat] / *Exi) -10/Exiles -9/Mines (discovered 1 exit: [*Mat]) History --------- Turn | Location | Event 25 | -11/Scrapyard | Discovered new exit (range 16) 45 | -11/Scrapyard | Entered Materials 163 | -10/Materials | Discovered new exit (range 9) 334 | -10/Materials | Build established: Mutant 337 | -10/Materials | Discovered new exit (range 16) 592 | -10/Materials | Discovered new exit (range 14) 883 | -10/Materials | Discovered new exit (range 12) 1043 | -10/Materials | Entered Mines 1069 | -10/Mines | Discovered new exit (range 9) 1142 | -10/Mines | Deemed a non-threat by the Exiles lab entrance 1142 | -10/Mines | Discovered new exit (range 5) 1146 | -10/Mines | Entered Exiles 1174 | -10/Exiles | Met 8R-AWN 1192 | -10/Exiles | Met EX-HEX 1225 | -10/Exiles | Met EX-BIN 1239 | -10/Exiles | Aligned with FarCom system 1240 | -10/Exiles | Given EX-Vault access code 1266 | -10/Exiles | Opened EX-Vault 1276 | -10/Exiles | Found Field Lobotomy Kit 1307 | -10/Exiles | Warned to stay clear of 0b10 Research branches 1340 | -10/Exiles | Met EX-DEC 1376 | -10/Exiles | Discovered new exit (range 14) 1388 | -10/Exiles | Left Exiles lab with Field Lobotomy Kit 1388 | -10/Exiles | Entered Mines 1520 | -9/Mines | Assembled infested the area 1525 | -9/Mines | Assisted by a Guerilla fighting off Assembled 1599 | -9/Mines | Core integrity fell below 50% 1677 | -9/Mines | Learned Materials security intel 1687 | -9/Mines | Lost 7 parts (1p2n2u2w) 1717 | -9/Mines | Discovered new exit (range 6) 1720 | -9/Mines | Self-destructed Last Messages --------------- 01638_ Acquired Bore Cannon. 01640_ System corrupted: Heat flow error (+105). 01644_ Acquired 16 matter. 01650_ Acquired 14 matter. 01656_ Heat Sink destroyed. 01662_ as-54575 destroyed. 01665_ Acquired 10 matter. 01677_ Acquired derelict log, extracted data. Data stored: Materials security intel. 01680_ GAXU5YQS0JP4ZY>UWY4DIEL6MBGS